bitfinex-derivatives/quotes_SOLF0:USTF0_20230901
["timestamp","ask_amount","ask_price","bid_price","bid_amount"]
[1693587300888,21.3937,19.374,19.364,15.35]
[1693587301282,15.48,19.372,19.359,123.19]
[1693587304991,15.49,19.366,19.359,123.19]
[1693587305195,15.49,19.366,19.353,278.1513357]
[1693587305196,15.49,19.366,19.358,15.36]
[1693587305693,20.5174,19.365,19.357,123.19]
[1693587307595,20.5174,19.365,19.354,0.45454546]
[1693587307893,20.5174,19.365,19.353,400.88940909]
[1693587307894,20.5174,19.365,19.353,123.19]
[1693587308095,0.78251552,19.363,19.353,123.19]
[1693587309196,15.49,19.361,19.35,123.19]
[1693587309494,123.19,19.359,19.347,123.19]
[1693587310993,123.19,19.356,19.344,0.45454546]
[1693587311197,15.49,19.354,19.344,0.45454546]
[1693587311898,15.49,19.354,19.345,0.45454546]
[1693587312103,15.49,19.354,19.343,9.95018456]
[1693587312399,15.49,19.354,19.344,0.45454546]
[1693587313196,123.19,19.352,19.341,0.12476729]
[1693587314003,0.79053645,19.351,19.341,0.12476729]
[1693587314997,123.98053645,19.351,19.341,0.12476729]
[1693587316295,15.49,19.346,19.341,0.12476729]
[1693587316606,15.49,19.344,19.341,0.12476729]
[1693587317799,15.49,19.344,19.336,0.45454546]
[1693587318000,15.49,19.344,19.333,9.95476362]
[1693587318201,16.28219621,19.344,19.334,0.45454546]
[1693587318699,15.49,19.338,19.326,123.64454546]
[1693587319005,15.49,19.335,19.324,123.19]
[1693587319299,15.49,19.335,19.325,9.95930033]
[1693587319504,15.49,19.335,19.326,0.45454546]
[1693587319802,123.19,19.333,19.326,0.45454546]
[1693587320009,123.19,19.333,19.321,9.50579033]
[1693587320010,138.68,19.333,19.321,9.50579033]
[1693587320606,15.49,19.329,19.318,123.19]
[1693587322010,15.49,19.327,19.316,123.19]
[1693587322202,15.49,19.327,19.318,15.36]
[1693587322510,123.19,19.328,19.316,123.19]
[1693587322703,123.19,19.328,19.317,9.50819833]
[1693587325703,123.19,19.331,19.328,38.50745604]
[1693587326010,123.19,19.334,19.328,38.50745604]
[1693587326208,123.19,19.337,19.328,38.50745604]
[1693587326404,123.19,19.335,19.328,38.50745604]
[1693587327515,123.19,19.338,19.328,38.50745604]
[1693587329309,20.1118,19.34,19.329,123.19]
[1693587329712,20.1118,19.34,19.328,38.50745604]
[1693587330812,20.1118,19.34,19.328,161.69745604]
[1693587331212,492.76,19.351,19.331,500.0]
[1693587331406,21.3643,19.346,19.332,0.45454546]
[1693587332519,227.07,19.343,19.332,0.45454546]
[1693587332917,248.4343,19.346,19.332,227.52454546]
[1693587333119,248.4343,19.346,19.333,0.45454546]
[1693587333816,248.4343,19.346,19.341,0.12476729]
[1693587334215,21.3643,19.346,19.341,0.12476729]
[1693587335916,227.07,19.352,19.341,0.12476729]
[1693587339021,227.07,19.355,19.342,0.45454546]
[1693587339226,20.8443,19.358,19.344,227.07]
[1693587339426,20.8443,19.358,19.345,0.45454546]
[1693587342033,20.8443,19.358,19.346,227.07]
[1693587344634,227.07,19.357,19.343,0.45454546]
[1693587346739,20.8443,19.358,19.343,0.45454546]
[1693587346740,20.8443,19.358,19.343,42.75325346]
[1693587346937,20.8443,19.358,19.346,227.07]
[1693587349337,227.07,19.356,19.343,227.07]
[1693587349541,227.07,19.356,19.344,0.45454546]
[1693587352347,123.69,19.356,19.344,124.14454546]
[1693587352547,123.69,19.356,19.345,0.45454546]
[1693587356352,123.69,19.353,19.345,0.45454546]
[1693587356549,123.69,19.353,19.342,0.45454546]
[1693587357952,15.51,19.352,19.342,0.45454546]
[1693587359058,15.51,19.349,19.341,0.12476729]
[1693587359451,15.51,19.347,19.341,0.12476729]
[1693587359953,20.3962,19.348,19.342,15.38]
[1693587360147,15.51,19.357,19.346,15.38]
[1693587360148,123.69,19.357,19.346,15.38]
[1693587360350,20.3962,19.356,19.348,123.69]
[1693587360551,123.69,19.363,19.352,15.38]
[1693587360756,15.51,19.365,19.354,15.38]
[1693587361056,15.51,19.365,19.354,15.83454546]
[1693587361256,20.3962,19.366,19.357,15.38]
[1693587361452,20.3962,19.366,19.36,15.38]
[1693587362658,15.51,19.365,19.359,123.69]
[1693587362859,15.51,19.37,19.359,123.69]
[1693587363054,37.271,19.37,19.359,123.69]
[1693587364152,15.51,19.365,19.359,123.69]
[1693587365151,0.82796587,19.366,19.36,15.38]
[1693587365553,15.51,19.365,19.354,123.69]
[1693587365752,123.69,19.363,19.353,0.45454546]
[1693587365952,123.69,19.363,19.351,123.69]
[1693587366150,123.69,19.363,19.343,0.45454546]
[1693587366151,15.51,19.36,19.348,123.69]
[1693587367155,123.69,19.358,19.345,123.69]
[1693587367355,226.74,19.358,19.345,226.74]
[1693587369456,21.7473,19.359,19.347,226.74]
[1693587372158,21.7473,19.359,19.351,15.38]
[1693587372959,21.7473,19.359,19.347,226.74]
[1693587378460,21.7473,19.359,19.351,15.38]
[1693587378858,21.7473,19.359,19.347,226.74]
[1693587381066,226.74,19.357,19.343,0.45454546]
[1693587381567,15.51,19.352,19.343,0.45454546]
[1693587381757,15.51,19.352,19.341,0.12476728]
[1693587381963,15.51,19.35,19.341,0.12476728]
[1693587382464,20.5907,19.349,19.341,0.12476728]
[1693587383564,15.51,19.345,19.341,0.12476728]
[1693587383758,15.51,19.345,19.333,0.45454546]
[1693587385668,15.51,19.342,19.333,0.45454546]
[1693587385869,15.51,19.342,19.33,15.38]
[1693587386273,15.51,19.338,19.327,15.38]
[1693587386473,15.51,19.335,19.323,242.12]
[1693587386669,15.51,19.342,19.326,226.74]
[1693587386975,15.51,19.338,19.326,226.74]
[1693587387176,226.74,19.339,19.326,226.74]
[1693587387474,226.74,19.342,19.328,226.74]
[1693587387673,226.74,19.345,19.332,226.74]
[1693587388068,15.51,19.342,19.33,15.38]
[1693587389081,242.25,19.34,19.326,226.74]
[1693587390177,396.45,19.34,19.326,226.74]
[1693587390677,15.51,19.335,19.323,226.74]
[1693587392076,15.51,19.332,19.322,0.45454546]
[1693587392267,20.8715,19.331,19.321,15.38]
[1693587392470,20.8715,19.331,19.322,0.45454546]
[1693587392668,20.8715,19.331,19.323,0.45454546]
[1693587392973,20.8715,19.331,19.321,15.38]
[1693587393276,226.74,19.33,19.322,0.45454546]
[1693587393469,226.74,19.33,19.323,0.45454546]
[1693587393669,226.74,19.33,19.318,15.38]
[1693587393670,226.74,19.33,19.319,0.45454546]
[1693587394272,20.8715,19.331,19.321,15.38]
[1693587394473,20.8715,19.331,19.322,0.45454546]
[1693587400284,226.74,19.336,19.322,236.70128357]
[1693587400484,226.74,19.336,19.323,278.20202759]
[1693587400681,15.51,19.335,19.323,278.20202759]
[1693587400886,15.51,19.335,19.322,227.19454546]
[1693587404784,15.51,19.335,19.323,278.15423529]
[1693587408489,15.51,19.335,19.322,227.19454546]
[1693587408689,15.51,19.335,19.323,278.15141484]
[1693587408886,15.51,19.335,19.322,227.19454546]
[1693587409287,15.51,19.338,19.325,226.74]
[1693587409890,247.1432,19.339,19.325,226.74]
[1693587410588,20.4032,19.339,19.328,226.74]
[1693587411087,190.60266538,19.382,19.328,226.74]
[1693587411088,226.74,19.345,19.331,226.74]
[1693587411293,226.74,19.345,19.332,0.45454546]
[1693587414285,20.2348,19.348,19.332,0.45454546]
[1693587414286,15.51,19.34,19.332,0.45454546]
[1693587414489,15.51,19.34,19.33,15.38]
[1693587414694,226.74,19.338,19.325,15.38]
[1693587414893,226.74,19.335,19.321,242.57454546]
[1693587415089,226.74,19.335,19.322,0.45454546]
[1693587417291,226.74,19.337,19.325,15.38]
[1693587418098,21.0953,19.339,19.327,226.74]
[1693587418397,21.0953,19.339,19.322,0.45454546]
[1693587418398,21.0953,19.339,19.33,226.74]
[1693587418796,226.74,19.345,19.332,226.74]
[1693587419396,247.4753,19.348,19.335,226.74]
[1693587419794,20.7353,19.348,19.339,15.38]
[1693587420101,906.96,19.359,19.342,15.38]
[1693587420102,15.51,19.354,19.342,15.38]
[1693587420398,15.51,19.354,19.342,15.83454546]
[1693587420900,226.74,19.355,19.342,15.83454546]
[1693587421101,20.4431,19.358,19.342,15.83454546]
[1693587421102,20.4431,19.358,19.345,226.74]
[1693587421303,20.4431,19.358,19.347,226.74]
[1693587421798,226.74,19.364,19.351,226.74]
[1693587422004,226.74,19.364,19.352,0.45454546]
[1693587422395,226.74,19.362,19.35,15.38]
[1693587423596,226.74,19.359,19.345,226.74]
[1693587425194,15.51,19.355,19.342,242.57454546]
[1693587425800,226.74,19.352,19.342,15.83454546]
[1693587426098,169.71,19.365,19.342,15.38]
[1693587426099,654.2,19.358,19.342,15.38]
[1693587426304,226.74,19.349,19.342,15.38]
[1693587426503,226.74,19.352,19.342,15.38]
[1693587426696,226.74,19.352,19.342,15.83454546]
[1693587426903,226.74,19.355,19.342,242.57454546]
[1693587429808,20.0432,19.357,19.346,226.74]
[1693587436311,20.0432,19.357,19.348,226.74]
[1693587436615,20.0432,19.357,19.351,226.74]
[1693587436811,242.25,19.365,19.351,226.74]
[1693587437013,226.74,19.365,19.351,226.74]
[1693587437210,21.2492,19.366,19.355,226.74]
[1693587438310,21.2492,19.366,19.357,15.38]
[1693587438510,21.2492,19.366,19.36,15.38]
[1693587438715,21.2492,19.366,19.355,226.74]
[1693587439014,21.2492,19.366,19.357,15.38]
[1693587439209,21.2492,19.366,19.359,15.38]
[1693587439412,21.2492,19.366,19.355,226.74]
[1693587439707,21.2492,19.366,19.357,15.38]
[1693587439912,21.2492,19.366,19.359,15.38]
[1693587440114,21.2492,19.366,19.355,226.74]
[1693587440414,21.2492,19.366,19.357,15.38]
[1693587440715,21.2492,19.366,19.359,15.38]
[1693587440911,21.2492,19.366,19.355,226.74]
[1693587441214,21.2492,19.366,19.357,15.38]
[1693587441412,21.2492,19.366,19.359,15.38]
[1693587441607,21.2492,19.366,19.355,226.74]
[1693587441810,21.2492,19.366,19.357,15.38]
[1693587442012,21.2492,19.366,19.359,15.38]
[1693587442312,21.2492,19.366,19.355,226.74]
[1693587442514,21.2492,19.366,19.357,15.38]
[1693587442712,21.2492,19.366,19.359,15.38]
[1693587442912,15.51,19.365,19.355,226.74]
[1693587443107,21.2492,19.366,19.357,15.38]
[1693587443309,21.2492,19.366,19.359,15.38]
[1693587443508,21.2492,19.366,19.355,226.74]
[1693587443711,21.2492,19.366,19.357,15.38]
[1693587443911,21.2492,19.366,19.359,15.38]
[1693587444214,21.2492,19.366,19.355,226.74]
[1693587444406,21.2492,19.366,19.357,242.12]
[1693587444611,21.2492,19.366,19.359,15.38]
[1693587444812,226.74,19.373,19.36,226.74]
[1693587445011,20.7032,19.369,19.36,226.74]
[1693587450113,20.7032,19.369,19.362,15.36]
[1693587450318,226.74,19.376,19.364,15.36]
[1693587450510,21.038,19.375,19.365,277.7912246]
[1693587452118,21.038,19.375,19.368,15.36]
[1693587454419,21.038,19.375,19.367,226.74]
[1693587457318,21.038,19.375,19.368,15.36]
[1693587459217,21.038,19.375,19.364,226.74]
[1693587459716,21.038,19.375,19.365,277.71190514]
[1693587460820,21.038,19.375,19.368,15.36]
[1693587461122,21.038,19.375,19.365,277.71190514]
[1693587461123,21.038,19.375,19.369,226.74]
[1693587461624,42.04026844,19.383,19.369,226.74]
[1693587461923,27.40532581,19.382,19.369,226.74]
[1693587462124,15.49,19.38,19.369,226.74]
[1693587462324,15.49,19.378,19.369,226.74]
[1693587462520,20.6122,19.382,19.369,226.74]
[1693587462721,15.49,19.38,19.369,226.74]
[1693587462923,15.49,19.378,19.369,226.74]
[1693587463124,20.6122,19.382,19.369,226.74]
[1693587463323,15.49,19.38,19.374,15.36]
[1693587463524,20.6122,19.382,19.374,15.36]
[1693587463724,6.79305639,19.381,19.374,15.36]
[1693587464224,20.6122,19.382,19.374,15.36]
[1693587465725,15.49,19.38,19.374,15.36]
[1693587465923,20.6122,19.382,19.37,226.74]
[1693587466228,15.49,19.38,19.37,226.74]
[1693587466519,20.6122,19.382,19.37,226.74]
[1693587466724,15.49,19.38,19.37,226.74]
[1693587466923,20.6122,19.382,19.37,226.74]
[1693587467125,15.49,19.38,19.37,226.74]
[1693587467325,20.6122,19.382,19.37,226.74]
[1693587467527,15.49,19.38,19.37,226.74]
[1693587467719,20.6122,19.382,19.37,226.74]
[1693587467917,15.49,19.38,19.37,226.74]
[1693587468123,20.6122,19.382,19.37,226.74]
[1693587468329,15.49,19.38,19.37,226.74]
[1693587468527,20.6122,19.382,19.37,226.74]
[1693587468728,15.49,19.38,19.37,226.74]
[1693587469028,20.6122,19.382,19.37,226.74]
[1693587469225,15.49,19.38,19.37,226.74]
[1693587469426,20.6122,19.382,19.37,226.74]
[1693587469626,15.49,19.38,19.37,226.74]
[1693587469822,169.69,19.38,19.368,226.74]
[1693587470023,20.6122,19.382,19.365,226.74]
[1693587470024,896.43,19.378,19.365,226.74]
[1693587470226,226.74,19.375,19.361,226.74]
[1693587470432,15.49,19.371,19.359,226.74]
[1693587476133,226.74,19.37,19.356,226.74]
[1693587476332,396.43,19.367,19.354,226.74]
[1693587476632,15.49,19.365,19.354,226.74]
[1693587476837,396.43,19.367,19.354,226.74]
[1693587477031,15.49,19.365,19.354,226.74]
[1693587477232,242.23,19.367,19.354,226.74]
[1693587477432,15.49,19.365,19.357,226.74]
[1693587477738,15.49,19.367,19.357,226.74]
[1693587477934,15.49,19.365,19.357,226.74]
[1693587478239,15.49,19.367,19.357,226.74]
[1693587478536,15.49,19.365,19.357,226.74]
[1693587478834,15.5,19.367,19.357,226.74]
[1693587479433,226.74,19.37,19.357,226.74]
[1693587479636,21.5737,19.371,19.36,226.74]
[1693587480034,21.5737,19.371,19.363,226.74]
[1693587481337,21.5737,19.371,19.35,906.96]
[1693587481338,15.5,19.367,19.35,906.96]
[1693587481535,396.44,19.367,19.353,226.74]
[1693587481739,15.5,19.365,19.353,226.74]
[1693587481932,396.44,19.367,19.353,226.74]
[1693587482134,15.5,19.365,19.353,226.74]
[1693587482337,15.5,19.365,19.352,226.74]
[1693587483842,6.78827053,19.364,19.352,226.74]
[1693587484142,15.5,19.365,19.352,226.74]
[1693587485838,15.5,19.365,19.354,15.37]
[1693587486042,15.5,19.365,19.352,226.74]
[1693587486744,15.5,19.365,19.354,15.37]
[1693587486939,387.72251335,19.364,19.35,226.74]
[1693587487246,380.94,19.364,19.351,277.93848837]
[1693587487437,20.4245,19.363,19.351,277.93848837]
[1693587488048,15.5,19.36,19.351,277.93848837]
[1693587488338,226.74,19.358,19.345,226.74]
[1693587488538,226.74,19.358,19.346,278.39963567]
[1693587489345,226.74,19.355,19.346,278.39963567]
[1693587489644,226.74,19.352,19.341,0.06238439]
[1693587490746,15.5,19.35,19.341,0.06238439]
[1693587490945,226.74,19.352,19.341,0.06238439]
[1693587491142,226.74,19.35,19.341,0.06238439]
[1693587491445,226.74,19.347,19.341,0.06238439]
[1693587491646,242.24,19.35,19.341,0.06238439]
[1693587491647,226.74,19.35,19.341,0.06238439]
[1693587491843,226.74,19.35,19.342,15.37]
[1693587492048,226.74,19.352,19.342,15.37]
[1693587492848,226.74,19.359,19.345,226.74]
[1693587493045,226.74,19.359,19.346,278.02498958]
[1693587493348,226.74,19.362,19.348,226.74]
[1693587493542,0.45454546,19.364,19.352,226.74]
[1693587493748,7.23185244,19.364,19.354,15.37]
[1693587495041,234.48432601,19.409,19.342,1061.16]
[1693587495042,6.77730698,19.363,19.357,226.74]
[1693587495244,20.9701,19.366,19.357,226.74]
[1693587495442,6.77924155,19.365,19.357,226.74]
[1693587495640,20.9701,19.366,19.357,226.74]
[1693587496145,226.74,19.37,19.357,226.74]
[1693587496339,226.74,19.373,19.36,226.74]
[1693587496550,15.5,19.371,19.36,226.74]
[1693587496748,6.77902006,19.37,19.362,226.74]
[1693587496943,6.77902006,19.369,19.362,226.74]
[1693587497247,21.9882,19.374,19.362,226.74]
[1693587497446,21.9882,19.374,19.35,1076.53]
[1693587497447,233.51831567,19.373,19.359,226.74]
[1693587497648,15.5,19.371,19.359,226.74]
[1693587497848,6.77831567,19.37,19.359,226.74]
[1693587498049,6.77831567,19.369,19.359,226.74]
[1693587498251,226.74,19.373,19.359,226.74]
[1693587498445,15.5,19.371,19.359,226.74]
[1693587498750,6.77765115,19.37,19.359,226.74]
[1693587498942,6.77765115,19.369,19.359,226.74]
[1693587499143,226.74,19.373,19.359,226.74]
[1693587499448,15.5,19.371,19.359,226.74]
[1693587499651,226.74,19.373,19.359,226.74]
[1693587499849,15.5,19.371,19.359,226.74]
[1693587500053,226.74,19.373,19.359,226.74]
[1693587500250,15.5,19.371,19.359,226.74]
[1693587500445,226.74,19.373,19.359,226.74]
[1693587500653,15.5,19.371,19.359,226.74]
[1693587500854,226.74,19.373,19.359,226.74]
[1693587501152,15.5,19.371,19.359,226.74]
[1693587501348,226.74,19.369,19.357,15.37]
[1693587501553,242.24,19.367,19.354,226.74]
[1693587501753,226.74,19.367,19.354,226.74]
[1693587501953,15.5,19.365,19.354,226.74]
[1693587502857,15.5,19.365,19.355,277.89101727]
[1693587503449,0.45454546,19.364,19.355,277.89101727]
[1693587503654,226.74,19.363,19.35,226.74]
[1693587503951,226.74,19.363,19.351,277.93908695]
[1693587504164,20.2092,19.362,19.351,277.93908695]
[1693587504455,20.2092,19.362,19.354,15.37]
[1693587505049,20.2092,19.362,19.346,0.06236826]
[1693587505050,40.36363635,19.369,19.359,226.74]
[1693587505257,226.74,19.373,19.359,226.74]
[1693587505457,20.66374546,19.374,19.35,1061.16]
[1693587505458,15.5,19.371,19.362,226.74]
[1693587505660,20.2092,19.374,19.362,226.74]
[1693587505858,6.76807061,19.373,19.362,226.74]
[1693587508258,6.76807061,19.373,19.365,226.74]
[1693587509156,6.76807061,19.373,19.368,226.74]
[1693587509360,21.7205,19.38,19.372,15.36]
[1693587509554,15.49,19.378,19.372,15.36]
[1693587509759,21.7205,19.38,19.372,15.36]
[1693587509960,15.49,19.378,19.372,15.36]
[1693587510260,21.7205,19.38,19.372,15.36]
[1693587510459,15.49,19.378,19.372,15.36]
[1693587510755,191.4105,19.38,19.368,226.74]
[1693587511057,191.4105,19.38,19.365,226.74]
[1693587511058,242.23,19.378,19.365,226.74]
[1693587511260,226.74,19.378,19.365,226.74]
[1693587511449,15.49,19.376,19.365,226.74]
[1693587511651,6.76792724,19.375,19.365,226.74]
[1693587511849,226.74,19.378,19.365,226.74]
[1693587512058,15.49,19.376,19.365,226.74]
[1693587512258,226.74,19.378,19.365,226.74]
[1693587512457,15.49,19.376,19.365,226.74]
[1693587512657,226.74,19.378,19.365,226.74]
[1693587512854,15.49,19.376,19.365,226.74]
[1693587513155,226.74,19.374,19.361,226.74]
[1693587513656,226.74,19.371,19.359,15.36]
[1693587513862,21.4057,19.37,19.358,226.74]
[1693587514159,6.76676914,19.369,19.358,226.74]
[1693587514863,15.49,19.367,19.354,226.74]
[1693587515064,15.49,19.367,19.355,277.9032909]
[1693587515456,21.4057,19.37,19.357,226.74]
[1693587515661,6.76680065,19.369,19.357,226.74]
[1693587516165,226.74,19.367,19.354,226.74]
[1693587516364,226.74,19.367,19.355,277.90329438]
[1693587517260,226.74,19.367,19.354,226.74]
[1693587517456,226.74,19.369,19.357,15.36]
[1693587517766,15.49,19.367,19.357,15.36]
[1693587518060,226.74,19.369,19.357,15.36]
[1693587518267,15.49,19.367,19.357,15.36]
[1693587518464,226.74,19.369,19.356,226.74]
[1693587518665,15.49,19.367,19.356,226.74]
[1693587518856,226.74,19.369,19.356,226.74]
[1693587519056,242.23,19.367,19.354,226.74]
[1693587519964,226.74,19.367,19.354,226.74]
[1693587520959,288.66636114,19.37,19.357,15.36]
[1693587521161,226.74,19.367,19.354,226.74]
[1693587522159,226.74,19.367,19.355,277.91632781]
[1693587522866,226.74,19.367,19.354,226.74]
[1693587523366,226.74,19.367,19.355,277.91132592]
[1693587523570,226.74,19.367,19.354,226.74]
[1693587524463,226.74,19.365,19.346,41.38744565]
[1693587524668,226.74,19.362,19.35,15.36]
[1693587524866,226.74,19.362,19.351,277.9165654]
[1693587525169,15.49,19.36,19.351,277.9165654]
[1693587527265,15.49,19.36,19.351,504.6565654]
[1693587527471,15.49,19.36,19.352,277.9165654]
[1693587529469,0.45454546,19.364,19.352,277.9165654]
[1693587531675,0.45454546,19.364,19.355,226.74]
[1693587531870,15.49,19.367,19.355,226.74]
[1693587532576,15.49,19.367,19.357,15.36]
[1693587532773,15.49,19.367,19.355,226.74]
[1693587533070,15.49,19.367,19.357,15.36]
[1693587533274,15.49,19.367,19.359,15.36]
[1693587533476,15.49,19.367,19.36,277.88766322]
[1693587533775,15.49,19.365,19.351,226.74]
[1693587533975,15.49,19.365,19.352,277.88926535]
[1693587535479,247.882,19.369,19.352,277.88926535]
[1693587535773,247.882,19.369,19.359,15.36]
[1693587535774,21.142,19.369,19.359,15.36]
[1693587535979,21.142,19.369,19.36,277.88926535]
[1693587536684,247.882,19.369,19.36,277.88926535]
[1693587536883,247.882,19.369,19.361,277.88926535]
[1693587537081,247.882,19.369,19.362,277.88926535]
[1693587537281,247.882,19.369,19.363,277.88926535]
[1693587537484,247.882,19.369,19.357,15.36]
[1693587537485,247.882,19.369,19.364,277.88926535]
[1693587537685,247.882,19.369,19.365,277.88926535]
[1693587537881,247.882,19.369,19.357,15.36]
[1693587538074,21.142,19.369,19.359,15.36]
[1693587538280,21.142,19.369,19.36,277.81776162]
[1693587541990,21.142,19.369,19.36,504.55776162]
[1693587542283,21.142,19.369,19.362,15.36]
[1693587542584,21.142,19.369,19.364,15.36]
[1693587542785,21.142,19.369,19.365,277.81776162]
[1693587542985,21.142,19.369,19.366,277.81776162]
[1693587543178,21.142,19.369,19.357,226.74]
[1693587543377,21.142,19.369,19.359,15.36]
[1693587543582,21.142,19.369,19.36,277.82136681]
[1693587543777,21.142,19.369,19.361,277.82136681]
[1693587543983,226.74,19.364,19.35,226.74]
[1693587544179,226.74,19.364,19.346,0.06236825]
[1693587544180,0.45454546,19.363,19.346,0.06236825]
[1693587544388,0.45454546,19.363,19.347,226.74]
[1693587544389,15.49,19.36,19.347,226.74]
[1693587544589,15.49,19.36,19.348,277.89401054]
[1693587544889,15.49,19.36,19.347,226.74]
[1693587550493,226.74,19.357,19.346,0.06236825]
[1693587552081,226.74,19.355,19.346,0.06236825]
[1693587552589,226.74,19.358,19.346,0.06236825]
[1693587553186,226.74,19.355,19.346,0.06236825]
[1693587557688,226.74,19.355,19.342,15.36]
[1693587558086,226.74,19.357,19.342,226.74]
[1693587560996,226.74,19.354,19.34,226.74]
[1693587562302,123.73,19.352,19.34,123.73]
[1693587562698,20.1676,19.351,19.34,123.73]
[1693587565398,15.49,19.35,19.33,15.58727272]
[1693587565706,123.73,19.347,19.334,123.73]
[1693587567295,226.96,19.347,19.334,226.96]
[1693587567495,15.49,19.35,19.337,15.36]
[1693587567496,242.45,19.35,19.337,15.36]
[1693587569001,226.96,19.347,19.334,226.96]
[1693587571298,226.96,19.344,19.331,226.96]
[1693587571509,226.96,19.344,19.332,278.04306228]
[1693587571707,20.1615,19.343,19.332,278.04306228]
[1693587572810,35.6715,19.343,19.332,278.04306228]
[1693587573112,15.51,19.34,19.332,278.04306228]
[1693587573413,15.51,19.34,19.327,41.14521963]
[1693587573613,15.51,19.34,19.328,9.50355354]
[1693587573807,15.51,19.34,19.327,778.04752416]
[1693587574011,15.51,19.34,19.328,287.55105945]
[1693587574208,15.51,19.34,19.33,15.38]
[1693587574412,226.96,19.341,19.328,278.04752416]
[1693587575312,226.96,19.339,19.328,278.04752416]
[1693587576509,226.96,19.339,19.327,500.0]
[1693587576813,226.96,19.339,19.326,268.47396069]
[1693587578510,15.51,19.338,19.326,268.47396069]
[1693587578815,15.51,19.335,19.323,227.08488318]
[1693587579018,226.96,19.333,19.323,0.12488318]
[1693587580615,21.5819,19.332,19.323,0.12488318]
[1693587583914,226.96,19.33,19.323,0.12488318]
[1693587584218,226.96,19.327,19.323,0.12488318]
[1693587587715,226.96,19.33,19.317,226.96]
[1693587588020,0.45454546,19.329,19.317,226.96]
[1693587588820,0.45454546,19.329,19.323,0.12488318]
[1693587589021,226.96,19.328,19.323,0.12488318]
[1693587597229,124.04,19.326,19.323,0.12488318]
[1693587598635,21.5819,19.332,19.323,0.12488318]
[1693587601333,0.45454546,19.34,19.323,0.12488318]
[1693587601535,154.2,19.35,19.324,124.04]
[1693587601536,124.04,19.336,19.324,124.04]
[1693587602630,124.04,19.334,19.322,149.91723]
[1693587603044,124.04,19.33,19.322,25.87723]
[1693587603245,124.04,19.328,19.322,25.87723]
[1693587603444,124.04,19.325,19.322,25.87723]
[1693587603642,124.04,19.325,19.323,0.12488318]
[1693587604947,20.7443,19.327,19.323,0.12488318]
[1693587605548,124.04,19.326,19.323,0.12488318]
[1693587606048,124.04,19.324,19.312,41.9037765]
[1693587606249,124.04,19.326,19.312,41.9037765]
[1693587606547,124.04,19.317,19.305,23.91982223]
[1693587606851,124.04,19.317,19.306,9.51407419]
[1693587607051,124.04,19.317,19.305,9.51407419]